bitfinex/quotes_SOLUSD_20250305
["timestamp","ask_amount","ask_price","bid_price","bid_amount"]
[1741212834327,0.033,145.56,145.55,218.04636319]
[1741212837335,0.033,145.56,145.55,530.04636319]
[1741212841540,0.033,145.56,145.55,229.93172059]
[1741212843040,5.18802302,145.56,145.55,229.93172059]
[1741212843836,5.18802302,145.56,145.55,249.00785416]
[1741212844320,0.033,145.56,145.55,249.00785416]
[1741212844520,0.033,145.56,145.55,561.00785416]
[1741212845345,0.033,145.56,145.55,523.17596319]
[1741212845817,0.033,145.56,145.55,530.04636319]
[1741212846732,0.033,145.56,145.55,561.00785416]
[1741212854151,0.033,145.56,145.55,530.04636319]
[1741212854948,0.033,145.56,145.55,561.00785416]
[1741212855246,0.033,145.56,145.55,561.15001573]
[1741212855552,0.033,145.56,145.55,569.33651573]
[1741212855852,0.033,145.56,145.55,569.19435416]
[1741212856854,0.033,145.56,145.55,550.26038216]
[1741212857043,0.033,145.56,145.55,538.37502476]
[1741212859348,0.033,145.56,145.55,569.33651573]
[1741212859650,0.033,145.56,145.55,569.19435416]
[1741212860155,0.033,145.56,145.55,550.26038216]
[1741212860654,0.033,145.56,145.55,538.37502476]
[1741212863673,0.033,145.56,145.55,530.04636319]
[1741212864645,0.033,145.56,145.55,523.17596319]
[1741212864846,0.033,145.56,145.55,530.04636319]
[1741212866545,0.033,145.56,145.55,218.04636319]
[1741212869669,0.033,145.56,145.55,561.00785416]
[1741212870176,0.033,145.56,145.55,249.00785416]
[1741212871172,0.033,145.56,145.55,249.15001573]
[1741212871359,0.033,145.59,145.58,12.02751897]
[1741212871561,0.033,145.59,145.58,223.20348216]
[1741212872262,0.033,145.59,145.58,211.31812476]
[1741212872462,0.033,145.59,145.58,218.18712476]
[1741212873079,0.033,145.59,145.58,523.17596319]
[1741212873577,0.033,145.59,145.58,530.04496319]
[1741212876281,0.033,145.59,145.58,218.04496319]
[1741212879285,0.033,145.59,145.58,530.04496319]
[1741212881261,0.033,145.59,145.58,218.18712476]
[1741212881462,0.033,145.59,145.58,230.07248216]
[1741212883367,0.033,145.59,145.58,218.18712476]
[1741212884184,0.033,145.59,145.58,530.18712476]
[1741212884685,0.033,145.59,145.58,542.07248216]
[1741212884979,0.033,145.59,145.58,561.00645416]
[1741212887887,0.033,145.59,145.58,549.12109676]
[1741212888064,0.033,145.59,145.58,561.00645416]
[1741212890584,0.033,145.59,145.58,549.12109676]
[1741212904705,0.033,145.59,145.58,561.00645416]
[1741212906209,0.033,145.59,145.58,523.17596319]
[1741212906506,11.9183574,145.59,145.58,74.27596319]
[1741212907685,11.9183574,145.59,145.56,74.30596319]
[1741212907881,11.8853574,145.57,145.56,74.30596319]
[1741212908297,13.5466574,145.57,145.56,74.30596319]
[1741212908708,13.5466574,145.57,145.56,0.03]
[1741212909226,13.5466574,145.57,145.53,0.03]
[1741212909227,6.3708,145.56,145.53,0.03]
[1741212909391,11.8853574,145.54,145.53,0.03]
[1741212910291,11.8853574,145.54,145.52,0.03]
[1741212910500,59.426787,145.53,145.49,74.30596319]
[1741212910699,11.8853574,145.5,145.49,74.30596319]
[1741212911590,17.17088739,145.56,145.49,74.30596319]
[1741212911796,11.8853574,145.54,145.49,211.20596319]
[1741212912034,11.8853574,145.55,145.49,229.96462059]
[1741212912220,22.68544479,145.56,145.5,13.32823188]
[1741212912423,22.68544479,145.56,145.51,6.8723]
[1741212912731,10.80008739,145.56,145.51,18.7576574]
[1741212913109,10.80008739,145.56,145.51,229.93362059]
[1741212913307,10.80008739,145.56,145.52,1.44258433]
[1741212913608,22.68544479,145.58,145.53,312.0]
[1741212913813,10.80008739,145.58,145.53,323.8853574]
[1741212914625,10.80008739,145.58,145.54,6.8709]
[1741212914935,22.68544479,145.58,145.54,6.8709]
[1741212915228,10.80008739,145.58,145.55,11.8853574]
[1741212915428,0.033,145.59,145.55,223.06132059]
[1741212915598,0.033,145.59,145.56,1.44213084]
[1741212916611,0.033,145.59,145.57,6.8695]
[1741212917728,0.033,145.59,145.58,1.44210542]
[1741212917938,0.033,145.59,145.58,245.45042115]
[1741212917939,0.0001,145.59,145.58,245.45042115]
[1741212918129,0.0001,145.59,145.58,244.00831573]
[1741212918300,0.0001,145.59,145.58,556.00831573]
[1741212919032,0.0001,145.59,145.58,562.87731573]
[1741212919399,0.033,145.6,145.59,19.21829514]
[1741212919609,0.033,145.6,145.59,38.62511717]
[1741212919943,0.033,145.6,145.59,256.66968036]
[1741212920234,0.033,145.6,145.59,255.22821573]
[1741212921016,0.0001,145.6,145.59,257.22821573]
[1741212921231,0.033,145.67,145.63,19.21829514]
[1741212921540,0.033,145.67,145.64,1.44130898]
[1741212922740,0.033,145.67,145.64,313.44130898]
[1741212922913,0.033,145.67,145.64,312.0]
[1741212923112,0.033,145.67,145.64,530.04196319]
[1741212923332,0.033,145.67,145.65,1.58347289]
[1741212923734,0.033,145.67,145.65,20.14059499]
[1741212923936,0.033,145.67,145.66,37.63325567]
[1741212924225,0.033,145.67,145.66,248.80921886]
[1741212924435,0.033,145.67,145.66,230.10993519]
[1741212924731,0.033,145.67,145.66,211.17596319]
[1741212926443,0.033,145.67,145.66,530.04126319]
[1741212929214,0.033,145.67,145.66,523.17596319]
[1741212932042,0.033,145.67,145.66,211.17596319]
[1741212933035,0.033,145.67,145.59,3.35822435]
[1741212933036,216.62287407,145.85,145.67,136.9]
[1741212933320,308.03753285,146.36,146.2,98.79303945]
[1741212933509,266.00601885,146.36,146.35,18.5571221]
[1741212933721,97.55158772,146.36,146.35,79.29464743]
[1741212933911,92.96182152,146.4,146.36,6.8324]
[1741212934127,120.17646461,146.39,146.36,8.26660626]
[1741212934316,86.0273127,146.39,146.37,34.43761839]
[1741212934516,55.55545152,146.39,146.37,34.43761839]
[1741212934731,34.18087913,146.55,146.37,267.06491968]
[1741212934732,115.44601769,146.38,146.37,267.06491968]
[1741212934923,57.59928137,146.38,146.37,232.62730129]
[1741212935126,45.08788308,146.38,146.37,267.06491968]
[1741212935317,122.5,146.38,146.37,267.06491968]
[1741212935516,76.77471239,146.38,146.37,337.02948364]
[1741212935713,37.99611584,146.38,146.37,374.83617038]
[1741212935938,37.99611584,146.38,146.37,292.68020733]
[1741212936625,37.99611584,146.38,146.37,255.51029589]
[1741212937142,14.21754451,146.38,146.37,255.51029589]
[1741212937533,61.93588917,146.38,146.37,153.53401885]
[1741212937738,151.00428542,146.38,146.37,153.53401885]
[1741212938846,122.36,146.38,146.37,13.95763807]
[1741212939415,42.89049155,146.38,146.37,13.95763807]
[1741212939920,90.60883621,146.38,146.37,13.95763807]
[1741212940539,90.60883621,146.38,146.35,20.42744705]
[1741212940844,28.75004728,146.38,146.35,20.42744705]
[1741212941143,47.71834466,146.36,146.34,10.14867865]
[1741212941323,1.43403488,146.35,146.32,45.33046138]
[1741212941523,95.43668932,146.33,146.32,45.33046138]
[1741212941723,95.43668932,146.33,146.31,20.42744705]
[1741212942332,95.43668932,146.33,146.22,20.42744705]
[1741212942533,47.71834466,146.27,146.22,20.42744705]
[1741212943129,47.71834466,146.29,146.22,20.42744705]
[1741212943646,47.71834466,146.29,146.21,1.57780283]
[1741212943647,47.71834466,146.29,146.21,1.43564126]
[1741212943945,47.71834466,146.29,146.22,0.14216157]
[1741212944324,47.71834466,146.32,146.21,1.43564126]
[1741212944325,47.71834466,146.25,146.21,0.14216157]
[1741212944730,47.71834466,146.26,146.21,0.14216157]
[1741212945333,47.71834466,146.28,146.21,0.14216157]
[1741212946331,47.71834466,146.26,146.21,0.14216157]
[1741212946734,47.71834466,146.28,146.21,0.14216157]
[1741212946952,47.71834466,146.3,146.21,0.14216157]
[1741212947252,124.2903,146.32,146.21,0.14216157]
[1741212947645,47.71834466,146.28,146.21,0.14216157]
[1741212950133,47.71834466,146.28,146.2,20.21194028]
[1741212950533,47.71834466,146.27,146.2,67.93028494]
[1741212951260,47.71834466,146.27,146.2,20.21194028]
[1741212951958,67.71834466,146.29,146.21,0.03]
[1741212952532,22.85347065,146.29,146.21,0.03]
[1741212952734,22.88647065,146.29,146.21,0.03]
[1741212953293,47.71834466,146.28,146.21,0.03]
[1741212954030,15.78569068,146.28,146.21,0.03]
[1741212954373,47.71834466,146.25,146.21,0.03]
[1741212954538,2.0504,146.31,146.21,0.03]
[1741212954539,47.71834466,146.26,146.21,0.03]
[1741212955135,0.10625655,146.26,146.21,0.03]
[1741212956543,29.46078931,146.27,146.21,0.03]
[1741212957369,29.46078931,146.22,146.21,0.03]
[1741212957554,2.0505,146.3,146.21,0.03]
[1741212958068,29.46078931,146.28,146.21,0.03]
[1741212958456,28.96078931,146.26,146.21,0.03]
[1741212958668,29.46078931,146.26,146.21,0.03]
[1741212959546,29.46078931,146.26,146.19,1.06581122]
[1741212959747,31.51188931,146.26,146.19,1.06581122]
[1741212959950,29.46078931,146.27,146.19,1.06581122]
[1741212960144,29.46078931,146.25,146.19,1.06581122]
[1741212960452,29.46078931,146.23,146.18,1.04712788]
[1741212960652,29.46078931,146.22,146.16,29.46078931]
[1741212960861,29.46078931,146.22,146.16,30.50853208]
[1741212961177,29.46078931,146.21,146.16,1.04774277]
[1741212961468,29.46078931,146.22,146.16,30.50853208]
[1741212961777,30.82848931,146.23,146.16,30.50853208]
[1741212962467,30.82848931,146.23,146.15,1.04751243]
[1741212962670,28.46078931,146.22,146.15,30.50830174]
[1741212962873,1.3677,146.23,146.16,29.46078931]
[1741212963065,29.46078931,146.25,146.2,0.24785377]
[1741212963852,28.46078931,146.25,146.2,0.24785377]
[1741212964059,81.0,146.31,146.22,0.24785377]
[1741212964252,3.4182,146.28,146.21,0.24785377]
[1741212964664,29.46078931,146.27,146.21,0.24785377]
[1741212965064,29.46078931,146.27,146.22,0.24785377]
[1741212965666,29.46078931,146.27,146.21,0.24785377]
[1741212966678,4.7859,146.26,146.22,0.24785377]
[1741212966977,4.7859,146.26,146.21,0.24785377]
[1741212967356,4.7859,146.26,146.22,0.24785377]
[1741212967677,4.7859,146.26,146.21,0.24785377]
[1741212967886,29.46078931,146.28,146.21,0.24785377]
[1741212968297,29.46078931,146.28,146.18,20.42744705]
[1741212968298,29.46078931,146.28,146.22,0.24785377]
[1741212968767,36.29698931,146.28,146.22,0.24785377]
[1741212969076,29.46078931,146.28,146.22,0.24785377]
[1741212969570,29.46078931,146.24,146.21,20.42744705]
[1741212969772,1.75214623,146.3,146.21,20.42744705]
[1741212969773,29.46078931,146.22,146.21,20.42744705]
[1741212970374,29.46078931,146.23,146.21,20.42744705]
[1741212970871,29.46078931,146.24,146.2,22.42744705]
[1741212971971,29.46078931,146.23,146.2,22.42744705]
[1741212972375,29.46078931,146.24,146.2,22.42744705]
[1741212972885,0.6838,146.23,146.2,22.42744705]
[1741212973372,29.46078931,146.25,146.2,22.42744705]
[1741212973575,17.87958603,146.25,146.22,20.42744705]
[1741212973772,29.46078931,146.23,146.22,4.705e-05]
[1741212974385,29.46078931,146.23,146.16,202.99580307]
[1741212974590,29.46078931,146.22,146.16,283.89580307]
[1741212974767,29.46078931,146.22,146.16,254.43501376]
[1741212974965,29.46078931,146.22,146.16,219.83]
[1741212975163,29.46078931,146.21,146.16,219.83]
[1741212975386,81.0,146.29,146.17,9.04345282]
[1741212975387,29.46078931,146.2,146.17,9.04345282]
[1741212975588,29.46078931,146.19,146.17,9.04345282]
[1741212975809,29.46078931,146.2,146.17,9.04345282]
[1741212976367,29.46078931,146.21,146.17,9.04345282]
[1741212976890,29.46078931,146.21,146.18,9.04345282]
[1741212977088,29.46078931,146.24,146.18,9.04345282]
[1741212977283,29.46078931,146.2,146.18,9.04345282]
[1741212977685,29.46078931,146.2,146.19,9.04345282]
[1741212978066,29.46078931,146.2,146.19,13.02154915]
[1741212978385,31.75827923,146.29,146.19,13.02154915]
[1741212978582,29.46078931,146.2,146.19,13.02154915]
[1741212979890,29.46078931,146.2,146.19,9.04345282]
[1741212980361,29.46078931,146.22,146.19,9.04345282]
[1741212980567,29.46078931,146.2,146.19,9.04345282]
[1741212980763,18.64964886,146.27,146.19,9.04345282]
[1741212980972,18.64964886,146.25,146.19,9.04345282]
[1741212982270,18.64964886,146.25,146.16,217.83]
[1741212986497,22.04471975,146.25,146.16,217.83]
[1741212990698,22.07771975,146.25,146.16,217.83]
[1741212996097,22.07771975,146.25,146.16,0.03]
[1741213001080,18.64964886,146.23,146.16,0.03]
[1741213006610,99.64964886,146.23,146.16,0.03]
[1741213019511,18.64964886,146.21,146.01,0.03]
[1741213019710,18.64964886,146.21,145.99,33.144979]
[1741213019711,18.64964886,146.16,145.99,8.97385477]
[1741213019912,18.64964886,146.16,146.04,18.43593528]
[1741213019913,90.85203576,146.15,146.04,18.43593528]
[1741213020105,8.08,146.2,146.1,18.43593528]
[1741213020306,122.313,146.25,146.11,18.43593528]
[1741213020307,0.033,146.24,146.11,18.43593528]
[1741213020518,0.033,146.24,146.11,217.8]
[1741213020718,18.64964886,146.22,146.11,80.9]
[1741213020913,18.64964886,146.2,146.11,80.9]
[1741213021209,6.65960893,146.19,146.08,217.8]
[1741213021418,18.64964886,146.18,146.08,80.9]
[1741213021609,116.16129355,146.18,146.08,80.9]
[1741213025139,6.72269808,146.17,146.08,80.9]
[1741213025438,18.64964886,146.16,146.08,80.9]
[1741213025631,81.0,146.15,146.05,18.891]
[1741213026018,18.64964886,146.14,146.05,18.891]
[1741213026732,103.98838169,146.14,146.05,18.891]
[1741213027436,81.0,146.13,146.03,80.9]
[1741213028135,22.98838169,146.14,146.01,136.93]
[1741213028136,99.64964886,146.12,146.01,136.93]
[1741213028320,18.64964886,146.1,146.01,0.03]
[1741213029124,81.0,146.09,146.01,0.03]
[1741213029323,99.64964886,146.08,146.01,0.03]
[1741213029927,81.0,146.07,146.01,0.03]
[1741213030326,18.64964886,146.05,146.01,0.03]
[1741213033137,81.0,146.06,146.01,0.03]
[1741213033723,84.3668704,146.06,146.01,0.03]
[1741213034230,3.3668704,146.06,146.01,0.03]
[1741213034439,3.45892532,146.1,146.01,0.03]
[1741213034440,18.64964886,146.1,146.01,0.03]
[1741213036126,3.48877137,146.11,146.03,18.43593528]
[1741213036324,81.0,146.13,146.04,18.43593528]
[1741213036525,18.64964886,146.15,146.04,18.43593528]
[1741213037340,18.64964886,146.15,146.03,18.43593528]
[1741213037637,23.04241542,146.15,146.02,20.43593528]
[1741213037844,23.04241542,146.15,146.03,18.43593528]
[1741213038344,23.04241542,146.15,146.02,20.43593528]
[1741213038843,23.04241542,146.15,146.02,18.43593528]
[1741213040141,23.04241542,146.15,146.01,238.26593528]
[1741213040356,18.64964886,146.13,146.01,217.83]
[1741213042449,81.0,146.12,146.01,80.93]
[1741213042635,4.39276656,146.15,146.01,80.93]
[1741213042636,18.64964886,146.1,146.01,80.93]
[1741213043642,99.64964886,146.1,146.01,80.93]
[1741213044542,18.64964886,146.08,146.01,0.03]
[1741213045131,18.64964886,146.06,146.01,0.03]
[1741213045447,99.64964886,146.06,146.01,0.03]
[1741213046232,18.64964886,146.04,146.01,0.03]
[1741213047248,99.64964886,146.04,146.01,0.03]
[1741213049555,103.14477113,146.04,146.01,0.03]
[1741213056168,18.64964886,146.02,145.91,36.5878]
[1741213056343,97.70690051,146.01,145.84,230.4953]
[1741213056540,18.64964886,145.99,145.84,230.4953]
[1741213056857,18.64964886,145.97,145.84,230.4953]
[1741213057043,6.85486475,145.96,145.84,230.4953]
[1741213057243,18.64964886,145.95,145.84,230.4953]
[1741213057444,6.85486475,145.95,145.84,230.4953]
[1741213059042,6.85486475,145.95,145.84,229.8953]
[1741213061462,18.64964886,145.93,145.84,92.9953]
[1741213064544,18.64964886,145.93,145.84,80.9]
[1741213066358,22.10970883,145.93,145.84,80.9]
[1741213071962,3.46005997,145.93,145.84,80.9]
[1741213072143,6.85486475,145.95,145.85,18.51884767]
[1741213072343,94.2111476,145.97,145.85,18.51884767]
[1741213072556,94.2111476,145.97,145.85,236.31884767]
[1741213072951,18.64964886,145.96,145.85,238.31884767]
[1741213074970,18.64964886,145.96,145.85,219.8]
[1741213075373,18.64964886,145.96,145.85,238.31884767]
[1741213077567,81.0,146.03,145.92,18.51884767]
[1741213077878,18.64964886,146.02,145.93,18.51884767]
[1741213078985,125.83624441,146.01,145.94,18.51884767]
[1741213079678,81.0,146.05,145.97,18.51884767]
[1741213079873,18.68264886,146.04,145.97,18.51884767]
[1741213080062,18.68264886,146.04,145.96,18.51884767]
[1741213080376,18.68264886,146.04,145.95,18.51884767]
[1741213081073,18.68264886,146.04,145.96,18.51884767]
[1741213082779,22.0482643,146.04,145.96,18.51884767]
[1741213084487,3.39861544,146.04,145.98,18.51884767]
[1741213084784,0.033,146.04,145.98,18.51884767]
[1741213085781,0.033,146.04,145.99,18.51884767]
[1741213085967,0.033,146.04,146.0,18.51884767]
[1741213086167,0.033,146.04,146.01,18.51884767]
[1741213087492,0.033,146.04,146.0,217.8]
[1741213089879,0.033,146.04,146.01,18.51884767]
[1741213090079,0.033,146.04,146.01,236.31884767]
[1741213091494,0.033,146.04,146.01,217.8]
[1741213092096,0.033,146.04,146.01,219.8]
[1741213094210,0.033,146.04,146.01,238.31884767]
[1741213094884,0.033,146.04,146.01,219.8]
[1741213096610,0.033,146.04,146.01,231.61872462]
[1741213096903,0.033,146.04,145.98,2.0]
[1741213097105,0.033,146.04,145.98,219.8]
[1741213098904,0.033,146.04,145.98,217.8]
[1741213099792,0.033,146.04,145.98,80.9]
[1741213100998,0.033,146.04,145.96,136.9]
[1741213101206,0.033,146.04,145.95,217.8]
[1741213102995,3.50360392,146.04,145.95,217.8]
[1741213104386,18.64964886,146.03,145.95,217.8]
[1741213106087,18.64964886,146.03,145.95,80.9]
[1741213107013,99.64964886,146.03,145.92,217.8]
[1741213107234,106.50451361,146.03,145.92,217.8]
[1741213108735,81.0,146.02,145.92,80.9]
[1741213108939,87.85486475,146.02,145.92,80.9]
[1741213109715,99.64964886,146.01,145.92,80.9]
[1741213116742,18.64964886,145.99,145.9,136.9]
[1741213116914,99.64964886,145.99,145.88,217.8]
[1741213117614,108.56279573,145.99,145.88,217.8]
[1741213119544,108.56279573,145.99,145.88,236.27470006]
[1741213119947,108.56279573,145.99,145.76,84.3015]
[1741213119948,19.0203,145.92,145.77,1.27783]
[1741213120249,107.07104997,145.91,145.77,1.27783]
[1741213120421,18.64964886,145.9,145.77,1.27783]
[1741213120745,18.64964886,145.88,145.77,1.27783]
[1741213120946,18.64964886,145.86,145.77,1.27783]
[1741213121122,18.79104997,145.85,145.77,1.27783]
[1741213122771,24.19502407,145.85,145.77,1.27783]
[1741213125157,18.64964886,145.84,145.77,1.27783]
[1741213125458,37.44069883,145.84,145.77,1.27783]
[1741213126956,118.44069883,145.84,145.77,1.27783]
[1741213127968,18.64964886,145.82,145.77,1.27783]
[1741213128355,29.11425283,145.82,145.77,1.27783]
[1741213129764,10.46460397,145.82,145.77,1.27783]
[1741213129964,11.81134658,145.84,145.77,19.75253006]
[1741213130162,3.48490058,145.84,145.77,19.75253006]
[1741213130361,18.64964886,145.86,145.77,19.75253006]
[1741213130754,18.64964886,145.86,145.77,1.27783]
[1741213131377,24.21462718,145.86,145.77,1.30783]
[1741213131570,0.033,145.84,145.77,1.30783]
[1741213134178,0.033,145.84,145.77,219.10783]
[1741213138386,3.45506454,145.84,145.77,219.10783]
[1741213138681,0.033,145.84,145.77,219.10783]
[1741213141081,0.033,145.84,145.77,237.58253006]
[1741213141386,0.033,145.84,145.8,18.47470006]
[1741213141592,0.033,145.84,145.81,20.47470006]
[1741213141758,0.033,145.84,145.83,18.47470006]
[1741213141962,0.033,145.84,145.83,238.27470006]
[1741213142159,0.033,145.84,145.83,236.27470006]
[1741213143397,0.033,145.84,145.83,263.78154892]
[1741213143884,0.033,145.84,145.83,256.92434892]
[1741213151294,0.033,145.84,145.83,219.8]
[1741213151504,0.033,145.84,145.83,80.9]
[1741213154509,0.033,145.84,145.79,136.9]
[1741213154811,0.033,145.84,145.77,219.10783]
[1741213158705,0.033,145.84,145.77,1.30783]
[1741213164814,0.033,145.84,145.82,2.0]
[1741213165009,0.033,145.84,145.82,238.27470006]
[1741213165385,0.033,145.84,145.82,217.8]
[1741213166415,0.033,145.84,145.79,101.37470006]
[1741213166609,0.033,145.84,145.79,238.27470006]
[1741213167696,0.033,145.84,145.8,18.47470006]
[1741213169421,0.033,145.84,145.8,20.47470006]
[1741213170413,0.033,145.84,145.83,18.47470006]
[1741213170632,0.033,145.84,145.83,256.92434892]
[1741213172423,0.033,145.84,145.83,263.78154892]
[1741213172628,0.033,145.84,145.83,256.92434892]
[1741213173610,0.033,145.84,145.83,568.92434892]
[1741213176723,0.033,145.84,145.83,256.92434892]
[1741213182030,0.033,145.84,145.83,256.95434892]
[1741213184539,0.033,145.84,145.83,250.32390582]
[1741213188333,0.033,145.84,145.83,229.67425696]
[1741213188513,0.033,145.84,145.83,231.67425696]
[1741213191629,0.033,145.84,145.83,217.83]
[1741213192029,0.033,145.84,145.83,80.93]
[1741213195146,0.033,145.84,145.83,0.03]
[1741213200444,0.033,145.84,145.81,136.43]
[1741213200943,0.033,145.84,145.77,19.95747886]
[1741213200944,0.033,145.84,145.77,84.20783]
[1741213201150,0.033,145.84,145.77,82.20783]
[1741213201539,0.033,145.84,145.77,84.20783]
[1741213201848,0.033,145.84,145.77,96.05208696]
[1741213202246,0.033,145.84,145.77,82.20783]
[1741213202430,0.033,145.84,145.77,96.05208696]
[1741213203747,0.033,145.84,145.78,13.84425696]
[1741213204050,0.033,145.84,145.78,231.17425696]
[1741213204848,0.033,145.84,145.78,229.17425696]
[1741213206549,0.033,145.84,145.79,11.84425696]
[1741213210060,0.033,145.84,145.79,229.17425696]
[1741213213156,0.033,145.84,145.79,217.33]
[1741213217161,0.033,145.84,145.82,11.84425696]
[1741213218958,0.033,145.84,145.81,11.84425696]
[1741213221963,0.033,145.84,145.81,229.17425696]
[1741213223059,0.033,145.84,145.81,217.33]
[1741213233859,0.033,145.84,145.81,80.9]
[1741213238379,0.033,145.84,145.77,1.30783]
[1741213238574,12.4673,145.84,145.77,1.30783]
[1741213239162,15.94680199,145.84,145.77,1.30783]
[1741213240177,18.64964886,145.83,145.77,1.30783]
[1741213242370,27.26202504,145.83,145.77,1.30783]
[1741213247988,8.61237618,145.82,145.77,1.30783]
[1741213255501,18.64964886,145.81,145.77,1.30783]
[1741213255706,27.26202504,145.81,145.77,1.30783]
[1741213261215,8.61237618,145.81,145.77,1.30783]
[1741213264315,15.34364262,145.83,145.77,1.30783]
[1741213265098,15.94680199,145.84,145.77,1.30783]
[1741213271016,108.26202504,145.83,145.77,1.30783]
[1741213272006,114.94324882,145.83,145.77,1.30783]
[1741213272407,18.64964886,145.81,145.72,217.33]
[1741213272722,18.64964886,145.79,145.72,80.9]
[1741213275832,27.26202504,145.79,145.72,80.9]
[1741213276004,27.26202504,145.79,145.72,80.93]
[1741213280543,30.74867702,145.79,145.72,80.93]
[1741213287949,30.78167702,145.79,145.72,80.93]
[1741213288845,8.61237618,145.78,145.72,80.93]
[1741213293626,8.61237618,145.78,145.72,0.03]
[1741213294244,11.0731,145.77,145.72,0.03]
[1741213296326,86.3556,145.76,145.72,0.03]
[1741213296523,108.26202504,145.75,145.69,0.03]
[1741213296729,81.0,145.74,145.69,0.03]
[1741213296925,96.29359996,145.74,145.69,0.03]
[1741213297137,99.64964886,145.73,145.69,0.03]
[1741213297462,121.22324882,145.73,145.62,0.03]
[1741213297658,81.0,145.72,145.62,0.03]
[1741213299134,81.0,145.72,145.62,2.03]
[1741213299666,18.64964886,145.71,145.62,2.03]
[1741213301830,20.07284262,145.72,145.65,2.0]
[1741213302036,20.07284262,145.72,145.66,217.36]
[1741213302037,15.34364262,145.72,145.66,217.36]
[1741213302237,15.34364262,145.72,145.67,2.0]
[1741213302445,15.34364262,145.72,145.7,2.0]
[1741213302643,26.0028734,145.76,145.7,219.33]
[1741213303772,26.0028734,145.76,145.72,2.0]
[1741213303978,10.65923078,145.76,145.72,2.0]
[1741213305549,3.47667214,145.78,145.72,2.0]
[1741213308080,3.47667214,145.78,145.72,219.33]
[1741213311677,3.47667214,145.78,145.72,217.33]
[1741213311862,12.08904832,145.78,145.72,217.33]
[1741213313987,12.08904832,145.78,145.72,80.9]
[1741213317675,18.64964886,145.77,145.72,80.9]
[1741213320067,18.64964886,145.77,145.69,219.36]
[1741213320574,18.64964886,145.77,145.69,217.36]
[1741213321079,18.64964886,145.77,145.69,219.36]
[1741213323198,3.47667214,145.78,145.69,219.36]
[1741213323199,3.47667214,145.78,145.7,3.44083462]
[1741213323494,3.47667214,145.78,145.71,2.0]
[1741213324806,3.47667214,145.78,145.69,217.36]
[1741213325097,3.47667214,145.78,145.69,219.36]
[1741213325400,0.033,145.77,145.69,219.36]
[1741213326914,0.033,145.77,145.71,11.84425696]
[1741213327080,0.033,145.77,145.73,2.0]
[1741213327397,0.033,145.77,145.73,219.33]
[1741213329185,0.033,145.77,145.73,217.33]
[1741213331802,0.033,145.77,145.73,80.9]
[1741213335708,0.033,145.77,145.73,82.9]
[1741213336009,0.033,145.77,145.74,2.0]
[1741213354218,0.033,145.77,145.75,2.0]
[1741213354796,0.033,145.77,145.76,2.0]
[1741213355001,0.033,145.77,145.76,220.77010216]
[1741213355199,0.033,145.77,145.76,219.33]
[1741213361641,0.033,145.77,145.76,216.33]
[1741213365628,0.033,145.77,145.76,214.33]
[1741213365837,0.033,145.77,145.76,216.33]
[1741213371537,0.033,145.77,145.76,234.97964886]
[1741213375133,0.033,145.77,145.76,216.33]
[1741213376165,0.033,145.77,145.74,80.9]
[1741213378968,0.033,145.77,145.74,80.9]
[1741213381844,0.033,145.77,145.74,82.9]
[1741213382878,0.033,145.77,145.74,80.9]
[1741213385848,0.033,145.77,145.74,80.93]
[1741213387073,0.033,145.77,145.76,2.0]
[1741213390078,0.033,145.77,145.76,216.33]
[1741213404291,0.033,145.77,145.76,241.98231043]
[1741213404793,0.033,145.77,145.76,253.82656739]
[1741213405199,0.033,145.77,145.76,253.68440582]
[1741213405494,0.033,145.77,145.76,241.98231043]
[1741213405684,0.033,145.77,145.76,553.98231043]
[1741213405998,0.033,145.77,145.76,547.12181043]
[1741213410020,0.033,145.77,145.76,216.33]
[1741213416601,0.033,145.77,145.76,214.33]